Workbook

Sheet Rezept Anmerkungen
A8: Rezepte aus dem THW-Handbuch
A10: Anmerkungen zu den nachfolgenden Rezepten:
A12: Bei den nachfolgenden Excel-Dateien bitte beachten:
A14: Im braun hinterlegten Feld ist die Personenzahl einzugeben.
A16: Die Zellen Ek-Preis in Euro (Spalte E) sollten laufend aktualisiert werden.
A18: Die grün hinterlegten Felder nach Möglichkeit nicht verändern,
A19: da dies größteneils Formelfelder sind.

Sheet Rezept 6.2
A4: 6.2 Bratfisch mit Kartoffelsalat (Mayonnaise)
B5: Spalte ausblenden
A6: Zutaten | B6: Menge | E6: Ek-Preis in EUR | F6: Summe in EUR | G6: ausblenden
B7: 10
C8: 1
A9: Seelachsfilet | B9: 2.000 | C9: =ROUND(B9/$B$7*$C$8,2) -> 0.200 | D9: kg | E9: 3.50 € | F9: =SUM(E9*C9) -> 0.70 €
A10: Paniermehl | B10: 0.200 | C10: 0.020 | D10: kg | E10: 2.30 € | F10: =SUM(E10*C10) -> 0.05 €
A11: Hühnerei, ganz | B11: 2.500 | C11: 0.250 | D11: Stück | E11: 0.14 € | F11: 0.04 €
A12: Bratfett | B12: 0.100 | C12: 0.010 | D12: kg | E12: 1.71 € | F12: 0.02 €
A13: Kartoffeln, gegart | B13: 4.000 | C13: 0.400 | D13: kg | E13: 1.30 € | F13: 0.52 €
A14: Mayonnaise 50 % Fett | B14: 0.500 | C14: 0.050 | D14: kg | E14: 2.50 € | F14: 0.13 €
A15: Gewürzgurken | B15: 0.250 | C15: 0.030 | D15: kg | E15: 1.28 € | F15: 0.04 €
A16: Essig | B16: ng | D16: ng
A17: Salz | B17: ng | D17: ng
A18: Pfeffer, weiß | B18: ng | D18: ng
A19: Zucker | B19: ng | D19: ng
A20: Senf, mittelscharf | B20: ng | D20: ng
A21: Petersilie, gehackt | B21: ng | D21: ng
A22: Teigwaren (ohne Ei) | B22: 1.000 | C22: =ROUND(B22/$B$7*$C$8,2) -> 0.10 | D22: kg | E22: 1.04 € | F22: =SUM(E22*C22) -> 0.10 €
A23: Nutzung Einrichtung, FKH u. Gerät | B23: 2.000 | C23: =ROUND(B23/$B$7*$C$8,2) -> 0.20 € | F23: =SUM(C23) -> 0.20 €
A24: Energiekosten | B24: 1.500 | C24: =ROUND(B24/$B$7*$C$8,2) -> 0.15 € | F24: =SUM(C24) -> 0.15 €
F26: =SUM(F9:F24) -> 1.94 €
A29: Eine Portion Verpflegung enthält:
A31: Rohgewicht | B31: 720 | C31: =SUM(B31*$C$8) -> 720 | D31: g | E31: Materialkosten:
A32: Energiewerte | B32: 3,469 | C32: 3,469 | D32: kJ | E32: Gesamtpreis: | F32: =SUM(F26) -> 1.94 €
B33: 829 | C33: 829 | D33: kcal | E33: MwSt. | F33: =ROUND(F32*G33,2) -> 0
A34: Eiweiß gesamt | B34: 44 | C34: 44 | D34: g | E34: Bruttopreis | F34: =SUM(F31:F33) -> 1.94 €
A35: Fett | B35: 38 | C35: 38 | D35: g
A36: Kohlenhydrate | B36: 76 | C36: 76 | D36: g
A39: Eine Portion enthält:
A41: Rohgewicht | C41: =B31 -> 720 | D41: g
A42: Energiewerte | C42: 3,469 | D42: kJ
C43: 829 | D43: kcal
A44: Eiweiß gesamt | C44: 44 | D44: g
A45: Fett | C45: 38 | D45: g
A46: Kohlenhydrate | C46: 76 | D46: g
A48: Besondere Hinweise:
A50: Kartoffelsalat gekühlt, max. + 7 °C
A51: Mayonnaise nach Anbruch kühlen

Sheet Rezept 6.3
A4: 6.3 Bratfisch mit Kartoffelsalat (Brühe)
B5: Spalte ausblenden
A6: Zutaten | B6: Menge | E6: Ek-Preis in EUR | F6: Summe in EUR
B7: 10
C8: 1
A9: Seelachsfilet | B9: 2.000 | C9: =ROUND(B9/$B$7*$C$8,2) -> 0.200 | D9: kg | E9: 3.50 € | F9: =ROUND(E9*C9,2) -> 0.70 €
A10: Paniermehl | B10: 0.200 | C10: =ROUND(B10/$B$7*$C$8,2) -> 0.020 | D10: kg | E10: 2.30 € | F10: =ROUND(E10*C10,2) -> 0.05 €
A11: Hühnerei, ganz | B11: 2.500 | C11: =ROUND(B11/$B$7*$C$8,2) -> 0.250 | D11: Stück | E11: 0.14 € | F11: 0.04 €
A12: Bratfett | B12: 0.100 | C12: =ROUND(B12/$B$7*$C$8,2) -> 0.010 | D12: kg | E12: 1.71 € | F12: 0.02 €
A13: Pellkartoffeln | B13: 1.500 | C13: =ROUND(B13/$B$7*$C$8,2) -> 0.150 | D13: kg | E13: 1.28 € | F13: 0.19 €
A14: Essig | D14: ng
A15: Speiseöl | B15: 0.080 | C15: =ROUND(B15/$B$7*$C$8,2) -> 0.010 | D15: ml | E15: 3.83 € | F15: 0.04 €
A16: Fleischbrühe | B16: 0.250 | C16: =ROUND(B16/$B$7*$C$8,2) -> 0.030 | D16: ml | E16: 1.36 € | F16: 0.04 €
A17: Zwiebeln, geschält | B17: 0.150 | C17: =ROUND(B17/$B$7*$C$8,2) -> 0.020 | D17: kg | E17: 1.09 € | F17: 0.02 €
A18: Salz | B18: ng | D18: ng
A19: Pfeffer, weiß | B19: ng | D19: ng
A20: Zucker | B20: ng | D20: ng
A21: Kräuter, gemischt | B21: 1.000 | D21: ng
A22: Nutzung Einrichtung, FKH u. Gerät | B22: 2.000 | C22: =ROUND(B22/$B$7*$C$8,2) -> 0.20 € | F22: =SUM(C22) -> 0.20 €
A23: Energiekosten | B23: 1.500 | C23: =ROUND(B23/$B$7*$C$8,2) -> 0.15 € | F23: =SUM(C23) -> 0.15 €
F25: =SUM(F9:F23) -> 1.45 €
A27: Die Verpflegung enthält:
A29: Rohgewicht | B29: 720 | C29: =SUM(B29*$C$8) -> 720 | D29: g | E29: Materialkosten:
A30: Energiewerte | B30: 2,340 | C30: 2,340 | D30: kJ | E30: Gesamtpreis: | F30: =SUM(F25) -> 1.45 €
B31: 559 | C31: 559 | D31: kcal | E31: MwSt. | F31: =ROUND(F30*G31,2) -> 0
A32: Eiweiß gesamt | B32: 39 | C32: 39 | D32: g | E32: Bruttopreis | F32: =SUM(F29:F31) -> 1.45 €
A33: Fett | B33: 28 | C33: 28 | D33: g
A34: Kohlenhydrate | B34: 39 | C34: 39 | D34: g
A37: Eine Portion enthält:
A39: Rohgewicht | C39: =B29 -> 720 | D39: g
A40: Energiewerte | C40: 2,340 | D40: kJ
C41: 559 | D41: kcal
A42: Eiweiß gesamt | C42: 39 | D42: g
A43: Fett | C43: 28 | D43: g
A44: Kohlenhydrate | C44: 39 | D44: g
A46: Besondere Hinweise:
A48: Kartoffelsalat gekühlt, max. + 7 °C
A49: Mayonnaise nach Anbruch kühlen

Sheet Rezept 6.4
A4: 6.4 Curryhackpfanne mit Butterreis
B5: Spalte ausblenden
A6: Zutaten | B6: Menge | E6: Ek-Preis in EUR | F6: Summe in EUR
B7: 10
C8: 1
A9: Rinder-/Schweinehackfleisch gemischt | B9: 1.600 | C9: =ROUND(B9/$B$7*$C$8,2) -> 0.160 | D9: kg | E9: 7.20 € | F9: =ROUND(E9*C9,2) -> 1.15 €
A10: Bratfett | B10: 0.150 | C10: =ROUND(B10/$B$7*$C$8,2) -> 0.020 | D10: kg | E10: 1.71 € | F10: =ROUND(E10*C10,2) -> 0.03 €
A11: Zwiebelwürfel | B11: 1.500 | C11: =ROUND(B11/$B$7*$C$8,2) -> 0.150 | D11: kg | E11: 1.35 € | F11: 0.20 €
A12: Curry | F12: 0
A13: Gemüsebrühe | B13: 5.000 | C13: =ROUND(B13/$B$7*$C$8,2) -> 0.500 | D13: kg | E13: 0.26 € | F13: 0.13 €
A14: Salz | D14: ng
A15: Schlagsahne 30 % Fett | B15: 0.300 | C15: =ROUND(B15/$B$7*$C$8,2) -> 0.030 | D15: ml | E15: 1.84 € | F15: 0.06 €
A16: Schmand 20 % Fett | B16: 0.300 | C16: 0.030 | D16: ml | E16: 2.10 € | F16: 0.06 €
A17: Reis, ungeschält | B17: 0.500 | C17: 0.050 | D17: kg | E17: 0.90 € | F17: 0.05 €
A18: Butter | B18: 0.050 | C18: 0.010 | D18: kg | E18: 4.17 € | F18: 0.04 €
A19: Nutzung Einrichtung, FKH u. Gerät | B19: 2.000 | C19: 0.20 € | F19: =SUM(C19) -> 0.20 €
A20: Energiekosten | B20: 1.500 | C20: 0.15 € | F20: =SUM(C20) -> 0.15 €
F22: =SUM(F9:F18) -> 1.72 €
A24: Die Verpflegung enthält:
A26: Rohgewicht | B26: 940 | C26: =SUM(B26*$C$8) -> 940 | D26: g | E26: Materialkosten:
A27: Energiewerte | B27: 4,089 | C27: 4,089 | D27: kJ | E27: Gesamtpreis: | F27: =SUM(F22) -> 1.72 €
B28: 977 | C28: 977 | D28: kcal | E28: MwSt. | F28: =ROUND(F27*G28,2) -> 0
A29: Eiweiß gesamt | B29: 38 | C29: 38 | D29: g | E29: Bruttopreis | F29: =SUM(F26:F28) -> 1.72 €
A30: Fett | B30: 70 | C30: 70 | D30: g
A31: Kohlenhydrate | B31: 50 | C31: 50 | D31: g
A34: Eine Portion enthält:
A36: Rohgewicht | C36: =B26 -> 940 | D36: g
A37: Energiewerte | C37: 4,089 | D37: kJ
C38: 977 | D38: kcal
A39: Eiweiß gesamt | C39: 38 | D39: g
A40: Fett | C40: 70 | D40: g
A41: Kohlenhydrate | C41: 50 | D41: g

Sheet Rezept 6.5
A4: 6.5 Erbseneintopf mit Bockwurst
B5: Spalte ausblenden
A6: Zutaten | B6: Menge | E6: Ek-Preis in EUR | F6: Summe in EUR
B7: 10
C8: 1
A9: Erbsen, getrocknet | B9: 1.000 | C9: =ROUND(B9/$B$7*$C$8,2) -> 0.100 | D9: kg | E9: 0.56 € | F9: =ROUND(E9*C9,2) -> 0.06 €
A10: Kartoffeln, geschält | B10: 2.000 | C10: 0.200 | D10: kg | E10: 1.30 € | F10: =ROUND(E10*C10,2) -> 0.26 €
A11: Sellerie | B11: 0.200 | C11: 0.020 | D11: g | E11: 2.04 € | F11: 0.04 €
A12: Möhren (Karotten) | B12: 0.300 | C12: 0.030 | D12: g | E12: 0.77 € | F12: 0.02 €
A13: Kasseler | B13: 0.800 | C13: 0.080 | D13: g | E13: 7.94 € | F13: 0.64 €
A14: Speck, durchwachsen, geräuchert | B14: 0.400 | C14: 0.040 | D14: g | E14: 2.81 € | F14: 0.11 €
A15: Lauch | B15: 0.400 | C15: 0.040 | D15: g | E15: 1.53 € | F15: 0.06 €
A16: Fleischbrühe | B16: 3.000 | C16: 0.300 | D16: l | E16: 1.36 € | F16: 0.41 €
A17: Salz, Pfeffer schwarz, Majoran, getrocknet | D17: ng | F17: 0
A18: Bockwurst | B18: 1.000 | C18: =ROUND(B18/$B$7*$C$8,2) -> 0.100 | D18: kg | E18: 7.70 € | F18: 0.77 €
A19: Nutzung Einrichtung, FKH u. Gerät | B19: 2.00 € | C19: =ROUND(B19/$B$7*$C$8,2) -> 0.20 € | F19: =SUM(C19) -> 0.20 €
A20: Energiekosten | B20: 1.50 € | C20: =ROUND(B20/$B$7*$C$8,2) -> 0.15 € | F20: =SUM(C20) -> 0.15 €
F22: =SUM(F9:F20) -> 2.72 €
A24: Die Verpflegung enthält:
A26: Rohgewicht | B26: 910 | C26: =SUM(B26*$C$8) -> 910 | D26: g | E26: Materialkosten:
A27: Energiewerte | B27: 4,783 | C27: 4,783 | D27: kJ | E27: Gesamtpreis: | F27: =SUM(F22) -> 2.72 €
B28: 1,142 | C28: 1,142 | D28: kcal | E28: MwSt. | F28: =ROUND(F27*G28,2) -> 0
A29: Eiweiß gesamt | B29: 65 | C29: 65 | D29: g | E29: Bruttopreis | F29: =SUM(F26:F28) -> 2.72 €
A30: Fett | B30: 64 | C30: 64 | D30: g
A31: Kohlenhydrate | B31: 77 | C31: 77 | D31: g
A34: Eine Portion enthält:
A36: Rohgewicht | C36: =B26 -> 910 | D36: g
A37: Energiewerte | C37: 4,783 | D37: kJ
C38: 1,142 | D38: kcal
A39: Eiweiß gesamt | C39: 65 | D39: g
A40: Fett | C40: 64 | D40: g
A41: Kohlenhydrate | C41: 77 | D41: g
A43: Besondere Hinweise:
A45: ggf. Zusatzstoffe: Bockwurst mit Phosphat (s. Etikett/Lieferschein)

Sheet Rezept 6.6
A4: 6.6 Gedünsteter Seelachs mit Dillrahmsoße und Salzkartoffeln
B5: Spalte ausblenden
A6: Zutaten | B6: Menge | E6: Ek-Preis in EUR | F6: Summe in EUR
B7: 10
C8: 1
A9: Seelachsfilet | B9: 2 | C9: =ROUND(B9/$B$7*$C$8,2) -> 0.2 | D9: kg | E9: 3.50 € | F9: =ROUND(E9*C9,2) -> 0.70 €
A10: Butter | B10: 0.09 | C10: =ROUND(B10/$B$7*$C$8,3) -> 0.009 | D10: kg | E10: 4.17 € | F10: =ROUND(E10*C10,2) -> 0.04 €
A11: Kräuter, gemischt | D11: ng
A12: Weizenmehl Type 405 | B12: 0.06 | C12: =ROUND(B12/$B$7*$C$8,3) -> 0.006 | D12: g | E12: 0.43 € | F12: =ROUND(E12*C12,3) -> 0.00 €
A13: Gemüsebrühe | B13: 1.25 | C13: =ROUND(B13/$B$7*$C$8,2) -> 0.13 | D13: l | E13: 0.26 € | F13: 0.03 €
A14: Sahne 10 % Fett | B14: 0.1 | C14: =ROUND(B14/$B$7*$C$8,2) -> 0.01 | D14: l | E14: 1.59 € | F14: 0.02 €
A15: Salzkartoffeln | B15: 5 | C15: =ROUND(B15/$B$7*$C$8,2) -> 0.5 | D15: kg | E15: 1.53 € | F15: 0.77 €
A16: Nutzung Einrichtung, FKH u. Gerät | B16: 2.00 € | C16: =ROUND(B16/$B$7*$C$8,2) -> 0.20 € | F16: =SUM(C16) -> 0.20 €
A17: Energiekosten | B17: 1.50 € | C17: =ROUND(B17/$B$7*$C$8,2) -> 0.15 € | F17: =SUM(C17) -> 0.15 €
F19: =SUM(F9:F17) -> 1.91 €
A22: Die Verpflegung enthält:
A24: Rohgewicht | B24: 850 | C24: =SUM(B24*$C$8) -> 850 | D24: g | E24: Materialkosten:
A25: Energiewerte | B25: 2,749 | C25: 2,749 | D25: kJ | E25: Gesamtpreis: | F25: =SUM(F19) -> 1.91 €
B26: 657 | C26: 657 | D26: kcal | E26: MwSt. | F26: =ROUND(F25*G26,2) -> 0
A27: Eiweiß gesamt | B27: 43 | C27: 43 | D27: g | E27: Bruttopreis | F27: =SUM(F24:F26) -> 1.91 €
A28: Fett | B28: 19 | C28: 19 | D28: g
A29: Kohlenhydrate | B29: 78 | C29: 78 | D29: g
A32: Eine Portion enthält:
A34: Rohgewicht | C34: =B24 -> 850 | D34: g
A35: Energiewerte | C35: 2,749 | D35: kJ
C36: 657 | D36: kcal
A37: Eiweiß gesamt | C37: 43 | D37: g
A38: Fett | C38: 19 | D38: g
A39: Kohlenhydrate | C39: 78 | D39: g

Sheet Rezept 6.7
A4: 6.7 Geschnetzeltes nach Gyros-Art mit Krautsalat, Tsatziki und Reis
B5: Spalte ausblenden
A6: Zutaten | B6: Menge | E6: Ek-Preis in EUR | F6: Summe in EUR
B7: 10
C8: 1
A9: Schweinefleisch, mager | B9: 2.2 | C9: =ROUND(B9/$B$7*$C$8,2) -> 0.22 | D9: kg | E9: 8.18 € | F9: =ROUND(E9*C9,2) -> 1.80 €
A10: Zwiebelwürfel | B10: 2 | C10: =ROUND(B10/$B$7*$C$8,2) -> 0.2 | D10: kg | E10: 1.35 € | F10: =ROUND(E10*C10,2) -> 0.27 €
A11: Salz | D11: ng
A12: Weißkohl | B12: 1.65 | C12: =ROUND(B12/$B$7*$C$8,2) -> 0.17 | D12: kg | E12: 1.12 € | F12: =ROUND(E12*C12,2) -> 0.19 €
A13: Zwiebeln, geschält | B13: 2.75 | C13: =ROUND(B13/$B$7*$C$8,2) -> 0.28 | D13: kg | E13: 1.09 € | F13: =ROUND(E13*C13,2) -> 0.31 €
A14: Essig | D14: ng
A15: Öl | D15: ng
A16: Pfeffer, weiß | D16: ng
A17: Zucker | D17: ng
A18: Kümmel | D18: ng
A19: Quark 10 % Fett i. Tr. | B19: 0.6 | C19: =ROUND(B19/$B$7*$C$8,2) -> 0.06 | D19: kg | E19: 1.50 € | F19: =ROUND(E19*C19,2) -> 0.09 €
A20: Joghurt 3,5 % Fett | B20: 0.4 | C20: =ROUND(B20/$B$7*$C$8,2) -> 0.04 | D20: kg | E20: 0.81 € | F20: =ROUND(E20*C20,2) -> 0.03 €
A21: Gurke | B21: 0.4 | C21: =ROUND(B21/$B$7*$C$8,2) -> 0.04 | D21: kg | E21: 1.10 € | F21: =ROUND(E21*C21,2) -> 0.04 €
A22: Knoblauch | D22: ng
A23: Petersilie, gehackt | D23: ng
A24: Reis, ungeschält | B24: 0.750 | C24: =ROUND(B24/$B$7*$C$8,2) -> 0.080 | D24: kg | E24: 0.90 € | F24: =ROUND(E24*C24,2) -> 0.07 €
A25: Nutzung Einrichtung, FKH u. Gerät | B25: 2.00 € | C25: =ROUND(B25/$B$7*$C$8,2) -> 0.20 € | F25: =SUM(C25) -> 0.20 €
A26: Energiekosten | B26: 1.50 € | C26: =ROUND(B26/$B$7*$C$8,2) -> 0.15 € | F26: =SUM(C26) -> 0.15 €
F28: =SUM(F9:F26) -> 3.15 €
A30: Die Verpflegung enthält:
A32: Rohgewicht | B32: 1090 | C32: =SUM(B32*$C$8) -> 1090 | D32: g | E32: Materialkosten:
A33: Energiewerte | B33: 2,444 | C33: 2,444 | D33: kJ | E33: Gesamtpreis: | F33: =SUM(F28) -> 3.15 €
B34: 583 | C34: 583 | D34: kcal | E34: MwSt. | F34: =ROUND(F33*G34,2) -> 0
A35: Eiweiß gesamt | B35: 45 | C35: 45 | D35: g | E35: Bruttopreis | F35: =SUM(F32:F34) -> 3.15 €
A36: Fett | B36: 11 | C36: 11 | D36: g
A37: Kohlenhydrate | B37: 76 | C37: 76 | D37: g
A40: Eine Portion enthält:
A42: Rohgewicht | C42: =B32 -> 1090 | D42: g
A43: Energiewerte | C43: 2,444 | D43: kJ
C44: 583 | D44: kcal
A45: Eiweiß gesamt | C45: 45 | D45: g
A46: Fett | C46: 11 | D46: g
A47: Kohlenhydrate | C47: 76 | D47: g

Sheet Rezept 6.8
A4: 6.8 Hähnchenbrustfilet an Pfefferrahm, Hartweizennudel
A5: und Gemüse
B6: Spalte ausblenden
A7: Zutaten | B7: Menge | E7: Ek-Preis in EUR | F7: Summe in EUR
B8: 10
C9: 1
A10: Hähnchenbrust, tiefgefroren | B10: 1.7 | C10: =ROUND(B10/$B$8*$C$9,2) -> 0.17 | D10: kg | E10: 7.42 | F10: =ROUND(E10*C10,2) -> 1.26
A11: Weizenmehl Type 405 | B11: 0.06 | C11: =ROUND(B11/$B$8*$C$9,2) -> 0.01 | D11: kg | E11: 0.43 | F11: =ROUND(E11*C11,2) -> 0
A12: Butter | B12: 0.06 | C12: =ROUND(B12/$B$8*$C$9,2) -> 0.01 | D12: kg | E12: 4.17 | F12: =ROUND(E12*C12,2) -> 0.04
A13: Geflügelbrühe | B13: 1.25 | C13: =ROUND(B13/$B$8*$C$9,2) -> 0.13 | D13: l | E13: 1.36 | F13: =ROUND(E13*C13,2) -> 0.18
A14: Sahne 10 % Fett | B14: 0.1 | C14: =ROUND(B14/$B$8*$C$9,2) -> 0.01 | D14: l | E14: 1.59 | F14: =ROUND(E14*C14,2) -> 0.02
A15: Pfefferkörner, grün | D15: ng
A16: Teigwaren aus Hartgrieß | B16: 1 | C16: =ROUND(B16/$B$8*$C$9,2) -> 0.1 | D16: kg | E16: 1.04 | F16: =ROUND(E16*C16,2) -> 0.1
A17: Mischgemüse | B17: 1.8 | C17: =ROUND(B17/$B$8*$C$9,2) -> 0.18 | D17: kg | E17: 2.18 | F17: =ROUND(E17*C17,2) -> 0.39
A18: Nutzung Einrichtung, FKH u. Gerät | B18: 2 | C18: =ROUND(B18/$B$8*$C$9,2) -> 0.20 | F18: =SUM(C18) -> 0.2
A19: Energiekosten | B19: 1.5 | C19: =ROUND(B19/$B$8*$C$9,2) -> 0.15 | F19: =SUM(C19) -> 0.15
F21: =SUM(F10:F19) -> 2.34
A23: Die Verpflegung enthält:
A25: Rohgewicht | B25: 597 | C25: =SUM(B25*$C$9) -> 597 | D25: g | E25: Materialkosten:
A26: Energiewerte | B26: 3,312 | C26: 3,312 | D26: kJ | E26: Gesamtpreis: | F26: =SUM(F21) -> 2.34 €
B27: 791 | C27: 791 | D27: kcal | E27: MwSt. | F27: =ROUND(F26*G27,2) -> 0
A28: Eiweiß gesamt | B28: 68 | C28: 68 | D28: g | E28: Bruttopreis | F28: =SUM(F25:F27) -> 2.34 €
A29: Fett | B29: 17 | C29: 17 | D29: g
A30: Kohlenhydrate | B30: 89 | C30: 89 | D30: g
A33: Eine Portion enthält:
A35: Rohgewicht | C35: =B25 -> 597 | D35: g
A36: Energiewerte | C36: 3,312 | D36: kJ
C37: 791 | D37: kcal
A38: Eiweiß gesamt | C38: 68 | D38: g
A39: Fett | C39: 17 | D39: g
A40: Kohlenhydrate | C40: 89 | D40: g

Sheet Rezept 6.9
A4: 6.9 Karottentopf, holländisch
B5: Spalte ausblenden
A6: Zutaten | B6: Menge | E6: Ek-Preis in EUR | F6: Summe in EUR
B7: 10
C8: 1
A9: Möhren (Karotten) | B9: 3 | C9: =ROUND(B9/$B$7*$C$8,2) -> 0.3 | D9: kg | E9: 0.77 € | F9: =ROUND(E9*C9,2) -> 0.23 €
A10: Zwiebeln, geschält | B10: 2 | C10: 0.2 | D10: kg | E10: 1.09 € | F10: =ROUND(E10*C10,2) -> 0.22 €
A11: Kartoffeln, geschält | B11: 2.5 | C11: 0.25 | D11: kg | E11: 1.30 € | F11: =ROUND(E11*C11,2) -> 0.33 €
A12: Bratwurst, Grundbrät | B12: 1.2 | C12: 0.12 | D12: kg | E12: 7.20 € | F12: =ROUND(E12*C12,2) -> 0.86 €
A13: Nutzung Einrichtung, FKH u. Gerät | B13: 2.0 | C13: 0.20 | F13: =SUM(C13) -> 0.20 €
A14: Energiekosten | B14: 1.5 | C14: 0.15 | F14: =SUM(C14) -> 0.15 €
F16: =SUM(F9:F14) -> 1.99 €
A18: Die Verpflegung enthält:
A20: Rohgewicht | B20: 870 | C20: =SUM(B20*$C$8) -> 870 | D20: g | E20: Materialkosten:
A21: Energiewerte | B21: 2,719 | C21: 2,719 | D21: kJ | E21: Gesamtpreis: | F21: =SUM(F16) -> 1.99 €
B22: 649 | C22: 649 | D22: kcal | E22: MwSt. | F22: =ROUND(F21*G22,2) -> 0
A23: Eiweiß gesamt | B23: 25 | C23: 25 | D23: g | E23: Bruttopreis | F23: =SUM(F20:F22) -> 1.99 €
A24: Fett | B24: 34 | C24: 34 | D24: g
A25: Kohlenhydrate | B25: 62 | C25: 62 | D25: g
A27: Eine Portion enthält:
A29: Rohgewicht | C29: =B20 -> 870 | D29: g
A30: Energiewerte | C30: 2,719 | D30: kJ
C31: 649 | D31: kcal
A32: Eiweiß gesamt | C32: 25 | D32: g
A33: Fett | C33: 34 | D33: g
A34: Kohlenhydrate | C34: 62 | D34: g

Sheet Rezept 6.10
A4: 6.10 Nudeln “Bologneser Art“
B5: Spalte ausblenden
A6: Zutaten | B6: Menge | E6: Ek-Preis in EUR | F6: Summe in EUR
B7: 10
C8: 1
A9: Rinder-/ Schweinehackfleisch gemischt | B9: 1.5 | C9: =ROUND(B9/$B$7*$C$8,2) -> 0.15 | D9: kg | E9: 7.20 € | F9: =ROUND(E9*C9,2) -> 1.08 €
A11: Bratfett | B11: 0.2 | C11: =ROUND(B11/$B$7*$C$8,2) -> 0.02 | D11: kg | E11: 1.71 € | F11: =ROUND(E11*C11,2) -> 0.03 €
A12: Zwiebelwürfel | B12: 1.5 | C12: 0.15 | D12: kg | E12: 1.35 € | F12: =ROUND(E12*C12,2) -> 0.20 €
A13: Tomatenmark | B13: 0.5 | C13: 0.05 | D13: kg | E13: 3.58 € | F13: =ROUND(E13*C13,2) -> 0.18 €
A14: Brühe, gekörnt | B14: 0.1 | C14: 0.01 | D14: kg | E14: 4.79 € | F14: =ROUND(E14*C14,2) -> 0.05 €
A15: Teigwaren aus Hartgrieß | B15: 1.1 | C15: 0.11 | D15: kg | E15: 1.04 € | F15: =ROUND(E15*C15,2) -> 0.11 €
A16: Nutzung Einrichtung, FKH u. Gerät | B16: 2.0 | C16: 0.20 | F16: =SUM(C16) -> 0.20 €
A17: Energiekosten | B17: 1.5 | C17: 0.15 | F17: =SUM(C17) -> 0.15 €
F19: =SUM(F9:F17) -> 2.00 €
A21: Die Verpflegung enthält:
A23: Rohgewicht | B23: 870 | C23: =SUM(B23*$C$8) -> 870 | D23: g | E23: Materialkosten:
A24: Energiewerte | B24: 2,719 | C24: 2,719 | D24: kJ | E24: Gesamtpreis: | F24: =SUM(F19) -> 2.00 €
B25: 649 | C25: 649 | D25: kcal | E25: MwSt. | F25: =ROUND(F24*G25,2) -> 0
A26: Eiweiß gesamt | B26: 25 | C26: 25 | D26: g | E26: Bruttopreis | F26: =SUM(F23:F25) -> 2.00 €
A27: Fett | B27: 34 | C27: 34 | D27: g
A28: Kohlenhydrate | B28: 62 | C28: 62 | D28: g
A31: Eine Portion enthält:
A33: Rohgewicht | C33: =B23 -> 870 | D33: g
A34: Energiewerte | C34: 2,719 | D34: kJ
C35: 649 | D35: kcal
A36: Eiweiß gesamt | C36: 25 | D36: g
A37: Fett | C37: 34 | D37: g
A38: Kohlenhydrate | C38: 62 | D38: g

Sheet Rezept 6.11
A4: 6.11 Truthahnschnitzel “Texas Art“ mit Potato Wedges
A5: (Ofenkartoffeln)
B6: Spalte ausblenden
A7: Zutaten | B7: Menge | E7: Ek-Preis in EUR | F7: Summe in EUR
B8: 10
C9: 1
A10: Putenschnitzel | B10: 1.7 | C10: =ROUND(B10/$B$8*$C$9,2) -> 0.17 | D10: kg | E10: 11.50 € | F10: =ROUND(E10*C10,2) -> 1.96 €
A11: Zwiebelwürfel | B11: 1 | C11: 0.1 | D11: kg | E11: 1.35 € | F11: 0.14 €
A12: Paprika, grün | B12: 0.25 | C12: 0.03 | D12: kg | E12: 2.56 € | F12: 0.08 €
A13: Geflügelbrühe | B13: 1.25 | C13: 0.13 | D13: l | E13: 1.36 € | F13: 0.18 €
A14: Tomatenmark | B14: 0.5 | C14: 0.05 | D14: kg | E14: 3.58 € | F14: 0.18 €
A15: Tomaten-Ketchup | B15: 0.3 | C15: 0.03 | D15: kg | E15: 3.90 € | F15: 0.12 €
A16: Kidney-Bohnen (Konserve) | B16: 0.3 | C16: 0.03 | D16: kg | E16: 2.00 € | F16: 0.06 €
A17: Mais (Konserve) | B17: 0.1 | C17: 0.01 | D17: kg | E17: 5.90 € | F17: 0.06 €
A18: Salz | D18: ng | F18: 0
A19: Paprika, edelsüß | D19: ng | F19: 0
A20: Basilikum | D20: ng | F20: 0
A21: Kartoffeln | B21: 3 | C21: =ROUND(B21/$B$8*$C$9,2) -> 0.3 | D21: kg | E21: 1.02 € | F21: 0.31 €
A22: Paprika | D22: ng
A23: Nutzung Einrichtung, FKH u. Gerät | B23: 2 | C23: =ROUND(B23/$B$8*$C$9,2) -> 0.20 | F23: =SUM(C23) -> 0.20 €
A24: Energiekosten | B24: 1.5 | C24: =ROUND(B24/$B$8*$C$9,2) -> 0.15 | F24: =SUM(C24) -> 0.15 €
F26: =SUM(F10:F24) -> 3.44 €
A28: Die Verpflegung enthält:
A30: Rohgewicht | B30: 840 | C30: =SUM(B30*$C$9) -> 840 | D30: g | E30: Materialkosten:
A31: Energiewerte | B31: 2,545 | C31: 2,545 | D31: kJ | E31: Gesamtpreis: | F31: =SUM(F26) -> 3.44 €
B32: 608 | C32: 608 | D32: kcal | E32: MwSt. | F32: =ROUND(F31*G32,2) -> 0
A33: Eiweiß gesamt | B33: 58 | C33: 58 | D33: g | E33: Bruttopreis | F33: =SUM(F30:F32) -> 3.44 €
A34: Fett | B34: 13 | C34: 13 | D34: g
A35: Kohlenhydrate | B35: 65 | C35: 65 | D35: g
A38: Eine Portion enthält:
A40: Rohgewicht | C40: =B30 -> 840 | D40: g
A41: Energiewerte | C41: 2,545 | D41: kJ
C42: 608 | D42: kcal
A43: Eiweiß gesamt | C43: 58 | D43: g
A44: Fett | C44: 13 | D44: g
A45: Kohlenhydrate | C45: 65 | D45: g

Sheet Rezept 6.12
A4: 6.12 Rindersaftgulasch mit Erbsengemüse und Bandnudeln
A5: (Tagliatelle)
B6: Spalte ausblenden
A7: Zutaten | B7: Menge | E7: Ek-Preis in EUR | F7: Summe in EUR
B8: 10
C9: 1
A10: Rindergulasch | B10: 1.8 | C10: =ROUND(B10/$B$8*$C$9,2) -> 0.18 | D10: kg | E10: 9.00 € | F10: =ROUND(E10*C10,2) -> 1.62 €
A11: Bratfett | B11: 0.5 | C11: 0.05 | D11: kg | E11: 1.71 € | F11: 0.09 €
A12: Zwiebelwürfel | B12: 1 | C12: 0.1 | D12: kg | E12: 1.35 € | F12: 0.14 €
A13: Tomatenmark | B13: 0.05 | C13: 0.01 | D13: kg | E13: 3.58 € | F13: 0.04 €
A14: Champignon, gegart (Konserve) | B14: 0.5 | C14: 0.05 | D14: kg | E14: 3.14 € | F14: 0.16 €
A15: Bratensaft (Braune klare Sauce) | B15: 2.5 | C15: 0.25 | D15: l | E15: 3.04 € | F15: 0.76 €
A16: Salz | D16: ng | F16: 0
A17: Paprika, edelsüß | D17: ng | F17: 0
A18: Pfeffer, schwarz | D18: ng | F18: 0
A19: Majoran, getrocknet | D19: ng | F19: 0
A20: Knoblauch | D20: ng | F20: 0
A21: Erbsen, grün | B21: 1.5 | C21: =ROUND(B21/$B$8*$C$9,2) -> 0.15 | D21: kg | E21: 2.49 € | F21: 0.37 €
A22: Butter | B22: 0.2 | C22: =ROUND(B22/$B$8*$C$9,2) -> 0.02 | D22: kg | F22: 0
A23: Pfeffer, weiß | D23: ng | E23: 4.17 € | F23: 0
A24: Zucker | D24: ng | F24: 0
A25: Teigwaren( ohne Ei) | B25: 1 | C25: =ROUND(B25/$B$8*$C$9,2) -> 0.1 | D25: kg | E25: 1.04 € | F25: 0.10 €
A26: Nutzung Einrichtung, FKH u. Gerät | B26: 2.0 | C26: =ROUND(B26/$B$8*$C$9,2) -> 0.20 | F26: =SUM(C26) -> 0.20 €
A27: Energiekosten | B27: 1.5 | C27: =ROUND(B27/$B$8*$C$9,2) -> 0.15 | F27: =SUM(C27) -> 0.15 €
F29: =SUM(F10:F27) -> 3.63 €
A31: Die Verpflegung enthält:
A33: Rohgewicht | B33: 840 | C33: =SUM(B33*$C$9) -> 840 | D33: g | E33: Materialkosten:
A34: Energiewerte | B34: 2,545 | C34: 2,545 | D34: kJ | E34: Gesamtpreis: | F34: =SUM(F29) -> 3.63 €
B35: 608 | C35: 608 | D35: kcal | E35: MwSt. | F35: =ROUND(F34*G35,2) -> 0
A36: Eiweiß gesamt | B36: 58 | C36: 58 | D36: g | E36: Bruttopreis | F36: =SUM(F33:F35) -> 3.63 €
A37: Fett | B37: 13 | C37: 13 | D37: g
A38: Kohlenhydrate | B38: 65 | C38: 65 | D38: g
A40: Eine Portion enthält:
A42: Rohgewicht | C42: =B33 -> 840 | D42: g
A43: Energiewerte | C43: 2,545 | D43: kJ
C44: 608 | D44: kcal
A45: Eiweiß gesamt | C45: 58 | D45: g
A46: Fett | C46: 13 | D46: g
A47: Kohlenhydrate | C47: 65 | D47: g

Sheet Rezept 6.13
A3: 6.13 Rinderschmorbraten mit Rotkohl und Kartoffelpüree
A5: Zutaten | B5: Menge | E5: Ek-Preis in EUR | F5: Summe in EUR
B6: 10
C7: 1
A8: Rinderschmorfleisch | B8: 1.9 | C8: =ROUND(B8/$B$6*$C$7,2) -> 0.19 | D8: kg | E8: 8.18 € | F8: =ROUND(E8*C8,2) -> 1.55 €
A9: Bratfett | B9: 0.2 | C9: =ROUND(B9/$B$6*$C$7,2) -> 0.02 | D9: kg | E9: 1.71 € | F9: =ROUND(E9*C9,2) -> 0.03 €
A10: Zwiebelwürfel | B10: 0.4 | C10: =ROUND(B10/$B$6*$C$7,2) -> 0.04 | D10: kg | E10: 1.35 € | F10: 0.05 €
A11: Brühe, instant | B11: 0.02 | C11: =ROUND(B11/$B$6*$C$7,3) -> 0.002 | D11: kg | E11: 0.020 € | F11: =ROUND(E11*C11,5) -> 0.00 €
A12: Tomatenmark | D12: ng | F12: 0
A13: Senf | D13: ng | F13: 0
A14: Weizenmehl Type 405 | B14: 0.1 | C14: =ROUND(B14/$B$6*$C$7,2) -> 0.01 | D14: kg | E14: 0.43 € | F14: 0
A15: Rotkohl | B15: 2.2 | C15: =ROUND(B15/$B$6*$C$7,2) -> 0.22 | D15: kg | E15: 0.70 € | F15: 0.15 €
A16: Schweineschmalz | B16: 0.04 | C16: =ROUND(B16/$B$6*$C$7,3) -> 0.004 | D16: kg | E16: 1.12 € | F16: =ROUND(E16*C16,4) -> 0.00 €
A17: Zwiebeln | B17: 0.3 | C17: =ROUND(B17/$B$6*$C$7,2) -> 0.03 | D17: kg | E17: 0.87 € | F17: 0.03 €
A18: Apfel | B18: 0.4 | C18: =ROUND(B18/$B$6*$C$7,2) -> 0.04 | D18: kg | E18: 1.59 € | F18: 0.06 €
A19: Zucker | D19: ng | F19: 0
A20: Salz | D20: ng | F20: 0
A21: Pfeffer, weiß | D21: ng | F21: 0
A22: Nelken | D22: ng | F22: 0
A23: Lorbeerblatt | D23: ng | F23: 0
A24: Wacholderbeeren | D24: ng | F24: 0
A25: Essig | D25: ng | F25: 0
A26: Salzkartoffeln | B26: 1.5 | C26: =ROUND(B26/$B$6*$C$7,2) -> 0.15 | D26: kg | E26: 1.53 € | F26: 0.23 €
A27: Butter | B27: 0.15 | C27: =ROUND(B27/$B$6*$C$7,2) -> 0.02 | D27: kg | E27: 4.17 € | F27: 0.08 €
A28: Trinkmilch 3,5 % Fett | B28: 0.3 | C28: =ROUND(B28/$B$6*$C$7,2) -> 0.03 | D28: ml | E28: 0.56 € | F28: 0.02 €
A29: Muskat | D29: ng
A30: Nutzung Einrichtung, FKH u. Gerät | B30: 2.00 | C30: =ROUND(B30/$B$6*$C$7,2) -> 0.20 | F30: =SUM(C30) -> 0.20 €
A31: Energiekosten | B31: 1.50 | C31: =ROUND(B31/$B$6*$C$7,2) -> 0.15 | F31: =SUM(C31) -> 0.15 €
F33: =SUM(F8:F31) -> 2.55 €
A35: Die Verpflegung enthält:
A37: Rohgewicht | B37: 749 | C37: =SUM(B37*$C$7) -> 749 | D37: g | E37: Materialkosten:
A38: Energiewerte | B38: 3,244 | C38: 3,244 | D38: kJ | E38: Gesamtpreis: | F38: =SUM(F33) -> 2.55 €
B39: 775 | C39: 775 | D39: kcal | E39: MwSt. | F39: =ROUND(F38*G39,2) -> 0
A40: Eiweiß gesamt | B40: 51 | C40: 51 | D40: g | E40: Bruttopreis | F40: =SUM(F37:F39) -> 2.55 €
A41: Fett | B41: 43 | C41: 43 | D41: g
A42: Kohlenhydrate | B42: 46 | C42: 46 | D42: g
A44: Eine Portion enthält:
A46: Rohgewicht | C46: =B37 -> 749 | D46: g
A47: Energiewerte | C47: 3,244 | D47: kJ
C48: 775 | D48: kcal
A49: Eiweiß gesamt | C49: 51 | D49: g
A50: Fett | C50: 43 | D50: g
A51: Kohlenhydrate | C51: 46 | D51: g

Sheet Rezept 6.14
A4: 6.14 Spätzlepfanne, Schwäbisch
A6: Zutaten | B6: Menge | E6: Ek-Preis in EUR | F6: Summe in EUR
B7: 10
C8: 1
A9: Zwiebelwürfel | B9: 0.3 | C9: =ROUND(B9/$B$7*$C$8,2) -> 0.03 | D9: kg | E9: 1.35 € | F9: =SUM(E9*C9) -> 0.04 €
A10: Butter | B10: 0.1 | C10: =ROUND(B10/$B$7*$C$8,2) -> 0.01 | D10: kg | E10: 4.17 € | F10: =SUM(E10*C10) -> 0.04 €
A11: Stärke | B11: 0.1 | C11: =ROUND(B11/$B$7*$C$8,2) -> 0.01 | D11: kg | E11: 1.53 € | F11: 0.02 €
A12: Brühe, instant | B12: 0.05 | C12: =ROUND(B12/$B$7*$C$8,3) -> 0.005 | D12: kg | E12: 20.00 € | F12: 0.10 €
A13: Schmelzkäse 60 % Fett i. Tr. | B13: 0.3 | C13: =ROUND(B13/$B$7*$C$8,2) -> 0.03 | D13: ng | E13: 6.50 € | F13: 0.20 €
A14: Schlagsahne 30 % Fett | B14: 0.5 | C14: 0.05 | D14: l | E14: 1.84 € | F14: 0.09 €
A15: Schinken, gekocht, gewürfelt | B15: 0.5 | C15: 0.05 | D15: kg | E15: 12.89 € | F15: 0.64 €
A16: Erbsen, grün, tiefgefroren | B16: 0.15 | C16: =ROUND(B16/$B$7*$C$8,3) -> 0.015 | D16: kg | E16: 2.56 € | F16: 0.04 €
A17: Paprikafrucht, gelb | B17: 0.1 | C17: 0.01 | D17: kg | E17: 2.56 € | F17: 0.03 €
A18: Paprikafrucht, grün | B18: 0.1 | C18: 0.01 | D18: kg | E18: 2.56 € | F18: 0.03 €
A19: Spätzle | B19: 0.8 | C19: 0.08 | D19: kg | E19: 2.30 € | F19: 0.18 €
A20: Nutzung Einrichtung, FKH u. Gerät | B20: 2.00 | C20: =ROUND(B20/$B$7*$C$8,2) -> 0.20 | F20: =SUM(C20) -> 0.20 €
A21: Energiekosten | B21: 1.50 | C21: =ROUND(B21/$B$7*$C$8,2) -> 0.15 | F21: =SUM(C21) -> 0.15 €
F23: =SUM(F9:F21) -> 1.75 €
A25: Die Verpflegung enthält:
A27: Rohgewicht | B27: 310 | C27: =SUM(B27*$C$8) -> 310 | D27: g | E27: Materialkosten:
A28: Energiewerte | B28: 3,195 | C28: 3,195 | D28: kJ | E28: Gesamtpreis: | F28: =SUM(F23) -> 1.75 €
B29: 763 | C29: 763 | D29: kcal | E29: MwSt. | F29: =ROUND(F28*G29,2) -> 0
A30: Eiweiß gesamt | B30: 33 | C30: 33 | D30: g | E30: Bruttopreis | F30: =SUM(F27:F29) -> 1.75 €
A31: Fett | B31: 39 | C31: 39 | D31: g
A32: Kohlenhydrate | B32: 71 | C32: 71 | D32: g
A35: Eine Portion enthält:
A37: Rohgewicht | C37: =B27 -> 310 | D37: g
A38: Energiewerte | C38: 3,195 | D38: kJ
C39: 763 | D39: kcal
A40: Eiweiß gesamt | C40: 33 | D40: g
A41: Fett | C41: 39 | D41: g
A42: Kohlenhydrate | C42: 71 | D42: g

Sheet Rezept 6.15
A4: 6.15 Schweinebraten mit Blumenkohl und Kartoffelklößen
A6: Zutaten | B6: Menge | E6: Ek-Preis in EUR | F6: Summe in EUR
B7: 10
C8: 1
A9: Zwiebeln, geschält | B9: 0.4 | C9: =ROUND(B9/$B$7*$C$8,2) -> 0.04 | D9: kg | E9: 1.09 € | F9: =SUM(E9*C9) -> 0.04 €
A10: Schweinebratenfleisch | B10: 1.8 | C10: =ROUND(B10/$B$7*$C$8,2) -> 0.18 | D10: kg | E10: 8.50 € | F10: =SUM(E10*C10) -> 1.53 €
A11: Blumenkohl | B11: 3 | C11: =ROUND(B11/$B$7*$C$8,2) -> 0.30 | D11: kg | E11: 2.20 € | F11: =SUM(E11*C11) -> 0.66 €
A12: Kartoffelklöße (Trockenprodukt) | B12: 0.90 | C12: =ROUND(B12/$B$7*$C$8,3) -> 0.090 | D12: kg | E12: 3.42 € | F12: =SUM(E12*C12) -> 0.31 €
A13: Butter | B13: 0.1 | C13: =ROUND(B13/$B$7*$C$8,2) -> 0.01 | D13: kg | E13: 4.17 € | F13: =SUM(E13*C13) -> 0.04 €
A14: Nutzung Einrichtung, FKH u. Gerät | B14: 2.00 | C14: =ROUND(B14/$B$7*$C$8,2) -> 0.20 | F14: =SUM(C14) -> 0.20 €
A15: Energiekosten | B15: 1.50 | C15: =ROUND(B15/$B$7*$C$8,2) -> 0.15 | F15: =SUM(C15) -> 0.15 €
F17: =SUM(F9:F15) -> 2.93 €
A19: Die Verpflegung enthält:
A21: Rohgewicht | B21: 620 | C21: =SUM(B21*$C$8) -> 620 | D21: g | E21: Materialkosten:
A22: Energiewerte | B22: 3,065 | C22: 3,065 | D22: kJ | E22: Gesamtpreis: | F22: =SUM(F17) -> 2.93 €
B23: 732 | C23: 732 | D23: kcal | E23: MwSt. | F23: =ROUND(F22*G23,2) -> 0
A24: Eiweiß gesamt | B24: 50 | C24: 50 | D24: g | E24: Bruttopreis | F24: =SUM(F21:F23) -> 2.93 €
A25: Fett | B25: 25 | C25: 25 | D25: g
A26: Kohlenhydrate | B26: 75 | C26: 75 | D26: g
A29: Eine Portion enthält:
A31: Rohgewicht | C31: =B21 -> 620 | D31: g
A32: Energiewerte | C32: 3,065 | D32: kJ
C33: 732 | D33: kcal
A34: Eiweiß gesamt | C34: 50 | D34: g
A35: Fett | C35: 25 | D35: g
A36: Kohlenhydrate | C36: 75 | D36: g

Sheet Rezept 6.16
A4: 6.16 Schweineschnitzel "Jäger Art" mit Pommes frites
A6: Zutaten | B6: Menge | E6: Ek-Preis in EUR | F6: Summe in EUR
B7: 10
C8: 1
A9: Schweineschnitzel | B9: 1.7 | C9: =ROUND(B9/$B$7*$C$8,2) -> 0.17 | D9: kg | E9: 7.41 € | F9: =SUM(E9*C9) -> 1.26 €
A10: Bratfett | B10: 0.2 | C10: =ROUND(B10/$B$7*$C$8,2) -> 0.02 | D10: kg | E10: 1.71 € | F10: 0.03 €
A11: Zwiebelwürfel | B11: 0.5 | C11: 0.05 | D11: kg | E11: 1.35 € | F11: 0.07 €
A12: Champignon | B12: 1.00 | C12: 0.10 | D12: kg | E12: 4.60 € | F12: 0.46 €
A13: Braune Kraftsauce (10 l) l | B13: 1.25 | C13: =ROUND(B13/$B$7*$C$8,3) -> 0.125 | D13: l | E13: 0.81 € | F13: 0.10 €
A14: Schlagsahne 30 % Fett | B14: 0.1 | C14: 0.01 | D14: l | E14: 0.18 € | F14: 0.00 €
A15: Pommes Frites | B15: 1.4 | C15: 0.14 | D15: kg | E15: 1.45 € | F15: 0.20 €
A16: Nutzung Einrichtung, FKH u. Gerät | B16: 2.00 | C16: =ROUND(B16/$B$7*$C$8,2) -> 0.20 | F16: =SUM(C16) -> 0.20 €
A17: Energiekosten | B17: 1.50 | C17: =ROUND(B17/$B$7*$C$8,2) -> 0.15 | F17: =SUM(C17) -> 0.15 €
F19: =SUM(F9:F17) -> 2.48 €
A22: Die Verpflegung enthält:
A24: Rohgewicht | B24: 542 | C24: =SUM(B24*$C$8) -> 542 | D24: g | E24: Materialkosten:
A25: Energiewerte | B25: 2,706 | C25: 2,706 | D25: kJ | E25: Gesamtpreis: | F25: =SUM(F19) -> 2.48 €
B26: 646 | C26: 646 | D26: kcal | E26: MwSt. | F26: =ROUND(F25*G26,2) -> 0
A27: Eiweiß gesamt | B27: 43 | C27: 43 | D27: g | E27: Bruttopreis | F27: =SUM(F24:F26) -> 2.48 €
A28: Fett | B28: 43 | C28: 43 | D28: g
A29: Kohlenhydrate | B29: 24 | C29: 24 | D29: g
A31: Eine Portion enthält:
A33: Rohgewicht | C33: =B24 -> 542 | D33: g
A34: Energiewerte | C34: 2,706 | D34: kJ
C35: 646 | D35: kcal
A36: Eiweiß gesamt | C36: 43 | D36: g
A37: Fett | C37: 43 | D37: g
A38: Kohlenhydrate | C38: 24 | D38: g

Sheet Rezept 7.1
A4: 7.1 Karamelcreme mit Sahne
A6: Zutaten | B6: Menge | E6: Ek-Preis in EUR | F6: Summe in EUR
B7: 10
C8: 1
A9: Zucker | B9: 0.3 | C9: =ROUND(B9/$B$7*$C$8,2) -> 0.03 | D9: kg | E9: 0.97 € | F9: =SUM(E9*C9) -> 0.03 €
A10: Trinkmilch 3,5 % Fett | B10: 1.25 | C10: =ROUND(B10/$B$7*$C$8,2) -> 0.13 | D10: l | E10: 0.56 € | F10: =SUM(E10*C10) -> 0.07 €
A11: Stärke | B11: 0.1 | C11: =ROUND(B11/$B$7*$C$8,2) -> 0.01 | D11: kg | E11: 1.53 € | F11: =SUM(E11*C11) -> 0.02 €
A12: Schlagsahne 30 % Fett | B12: 0.10 | C12: =ROUND(B12/$B$7*$C$8,2) -> 0.01 | D12: l | E12: 1.84 € | F12: =SUM(E12*C12) -> 0.02 €
F14: =SUM(F9:F12) -> 0.14 €
A17: Die Verpflegung enthält:
A19: Rohgewicht | B19: 175 | C19: =SUM(B19*$C$8) -> 175 | D19: g | E19: Materialkosten:
A20: Energiewerte | B20: 1,110 | C20: 1,110 | D20: kJ | E20: Gesamtpreis: | F20: =SUM(F14) -> 0.14 €
B21: 265 | C21: 265 | D21: kcal | E21: MwSt. | F21: =ROUND(F20*G21,2) -> 0
A22: Eiweiß gesamt | B22: 4 | C22: 4 | D22: g | E22: Bruttopreis | F22: =SUM(F19:F21) -> 0.14 €
A23: Fett | B23: 7 | C23: 7 | D23: g
A24: Kohlenhydrate | B24: 45 | C24: 45 | D24: g
A27: Eine Portion enthält:
A29: Rohgewicht | C29: =B19 -> 175 | D29: g
A30: Energiewerte | C30: 1,110 | D30: kJ
C31: 265 | D31: kcal
A32: Eiweiß gesamt | C32: 4 | D32: g
A33: Fett | C33: 7 | D33: g
A34: Kohlenhydrate | C34: 45 | D34: g

Sheet Rezept 7.2
A4: 7.2 Haselnussquark
A6: Zutaten | B6: Menge | E6: Ek-Preis in EUR | F6: Summe in EUR
B7: 10
C8: 1
A9: Quark, Magerstufe | B9: 1 | C9: =ROUND(B9/$B$7*$C$8,2) -> 0.1 | D9: kg | E9: 1.50 € | F9: =SUM(E9*C9) -> 0.15 €
A10: Schlagsahne 30 % Fett | B10: 0.2 | C10: =ROUND(B10/$B$7*$C$8,2) -> 0.02 | D10: l | E10: 1.84 € | F10: =SUM(E10*C10) -> 0.04 €
A11: Butter | B11: 0.05 | C11: =ROUND(B11/$B$7*$C$8,3) -> 0.005 | D11: kg | E11: 4.17 € | F11: =SUM(E11*C11) -> 0.02 €
A12: Haselnüsse, gehackt | B12: 0.1 | C12: =ROUND(B12/$B$7*$C$8,2) -> 0.01 | D12: kg | E12: 6.50 € | F12: =SUM(E12*C12) -> 0.07 €
A13: Zucker | B13: 0.15 | C13: =ROUND(B13/$B$7*$C$8,2) -> 0.02 | D13: kg | E13: 0.97 € | F13: =SUM(E13*C13) -> 0.02 €
F15: =SUM(F9:F13) -> 0.29 €
A18: Die Verpflegung enthält:
A20: Rohgewicht | B20: 150 | C20: =SUM(B20*$C$8) -> 150 | D20: g | E20: Materialkosten:
A21: Energiewerte | B21: 1,222 | C21: 1,222 | D21: kJ | E21: Gesamtpreis: | F21: =SUM(F15) -> 0.29 €
B22: 292 | C22: 292 | D22: kcal | E22: MwSt. | F22: =ROUND(F21*G22,2) -> 0
A23: Eiweiß gesamt | B23: 15 | C23: 15 | D23: g | E23: Bruttopreis | F23: =SUM(F20:F22) -> 0.29 €
A24: Fett | B24: 17 | C24: 17 | D24: g
A25: Kohlenhydrate | B25: 21 | C25: 21 | D25: g
A28: Eine Portion enthält:
A30: Rohgewicht | C30: =B20 -> 150 | D30: g
A31: Energiewerte | C31: 1,222 | D31: kJ
C32: 292 | D32: kcal
A33: Eiweiß gesamt | C33: 15 | D33: g
A34: Fett | C34: 17 | D34: g
A35: Kohlenhydrate | C35: 21 | D35: g

Sheet Rezept 7.3
A4: 7.3 Milchreis mit Fruchtsoße
A6: Zutaten | B6: Menge | E6: Ek-Preis in EUR | F6: Summe in EUR
B7: 10
C8: 1
A9: Trinkmilch 3,5 % Fett | B9: 1.25 | C9: =ROUND(B9/$B$7*$C$8,3) -> 0.125 | D9: l | E9: 0.56 € | F9: =SUM(E9*C9) -> 0.07 €
A10: Zucker | B10: 0.15 | C10: =ROUND(B10/$B$7*$C$8,3) -> 0.015 | D10: kg | E10: 0.97 € | F10: =SUM(E10*C10) -> 0.01 €
A11: Reis, Rundkorn | B11: 0.2 | C11: =ROUND(B11/$B$7*$C$8,3) -> 0.020 | D11: kg | E11: 2.04 € | F11: =SUM(E11*C11) -> 0.04 €
A12: Aprikose (Konserve) | B12: 0.4 | C12: =ROUND(B12/$B$7*$C$8,2) -> 0.04 | D12: kg | E12: 2.70 € | F12: =SUM(E12*C12) -> 0.11 €
A13: Schlagsahne 30 % Fett | B13: 0.1 | C13: =ROUND(B13/$B$7*$C$8,2) -> 0.01 | D13: l | E13: 1.84 € | F13: =SUM(E13*C13) -> 0.02 €
A14: Zitrone, Fruchtsaft | C14: ng
F16: =SUM(F9:F14) -> 0.25 €
A19: Die Verpflegung enthält:
A21: Rohgewicht | B21: 210 | C21: =SUM(B21*$C$8) -> 210 | D21: g | E21: Materialkosten:
A22: Energiewerte | B22: 1,126 | C22: 1,126 | D22: kJ | E22: Gesamtpreis: | F22: =SUM(F16) -> 0.25 €
B23: 269 | C23: 269 | D23: kcal | E23: MwSt. | F23: =ROUND(F22*G23,2) -> 0
A24: Eiweiß gesamt | B24: 6 | C24: 6 | D24: g | E24: Bruttopreis | F24: =SUM(F21:F23) -> 0.25 €
A25: Fett | B25: 8 | C25: 8 | D25: g
A26: Kohlenhydrate | B26: 44 | C26: 44 | D26: g
A29: Eine Portion enthält:
A31: Rohgewicht | C31: =B21 -> 210 | D31: g
A32: Energiewerte | C32: 1,126 | D32: kJ
C33: 269 | D33: kcal
A34: Eiweiß gesamt | C34: 6 | D34: g
A35: Fett | C35: 8 | D35: g
A36: Kohlenhydrate | C36: 44 | D36: g

Sheet Rezept 7.4
A4: 7.4 Obstsalat
A6: Zutaten | B6: Menge | E6: Ek-Preis in EUR | F6: Summe in EUR
B7: 10
C8: 1
A9: Banane | B9: 0.3 | C9: =ROUND(B9/$B$7*$C$8,3) -> 0.030 | D9: kg | E9: 1.33 € | F9: =SUM(E9*C9) -> 0.04 €
A10: Apfel | B10: 0.4 | C10: =ROUND(B10/$B$7*$C$8,3) -> 0.04 | D10: kg | E10: 1.59 € | F10: =SUM(E10*C10) -> 0.06 €
A11: Obst, gemischt | B11: 0.5 | C11: =ROUND(B11/$B$7*$C$8,3) -> 0.050 | D11: kg | E11: 2.04 € | F11: =SUM(E11*C11) -> 0.10 €
A12: Zitrone, Fruchtsaft | C12: ng
A13: Zucker | B13: 0.05 | C13: =ROUND(B13/$B$7*$C$8,2) -> 0.01 | D13: kg | E13: 0.97 € | F13: =SUM(E13*C13) -> 0.01 €
F15: =SUM(F9:F13) -> 0.22 €
A18: Die Verpflegung enthält:
A20: Rohgewicht | B20: 125 | C20: =SUM(B20*$C$8) -> 125 | D20: g | E20: Materialkosten:
A21: Energiewerte | B21: 465 | C21: 465 | D21: kJ | E21: Gesamtpreis: | F21: =SUM(F15) -> 0.22 €
B22: 111 | C22: 111 | D22: kcal | E22: MwSt. | F22: =ROUND(F21*G22,2) -> 0
A23: Eiweiß gesamt | B23: <1 | C23: <1 | D23: g | E23: Bruttopreis | F23: =SUM(F20:F22) -> 0.22 €
A24: Fett | B24: <1 | C24: <1 | D24: g
A25: Kohlenhydrate | B25: 26 | C25: 26 | D25: g
A28: Eine Portion enthält:
A30: Rohgewicht | C30: =B20 -> 125 | D30: g
A31: Energiewerte | C31: 465 | D31: kJ
C32: 111 | D32: kcal
A33: Eiweiß gesamt | C33: <1 | D33: g
A34: Fett | C34: <1 | D34: g
A35: Kohlenhydrate | C35: 26 | D35: g

Sheet Rezept 7.5
A4: 7.5 Quarkspeise mit Früchten
A6: Zutaten | B6: Menge | E6: Ek-Preis in EUR | F6: Summe in EUR
B7: 10
C8: 1
A9: Quark, Magerstufe | B9: 1 | C9: =ROUND(B9/$B$7*$C$8,3) -> 0.100 | D9: kg | E9: 1.50 € | F9: =SUM(E9*C9) -> 0.15 €
A10: Trinkmilch 3,5 % Fett | B10: 0.5 | C10: =ROUND(B10/$B$7*$C$8,3) -> 0.05 | D10: l | E10: 0.56 € | F10: =SUM(E10*C10) -> 0.03 €
A11: Zucker | B11: 0.15 | C11: =ROUND(B11/$B$7*$C$8,3) -> 0.015 | D11: kg | E11: 0.97 € | F11: =SUM(E11*C11) -> 0.01 €
A12: Erdbeere | B12: 0.5 | C12: =ROUND(B12/$B$7*$C$8,3) -> 0.05 | D12: kg | E12: 2.48 € | F12: =SUM(E12*C12) -> 0.12 €
A13: Schlagsahne 30 % Fett | B13: 0.15 | C13: =ROUND(B13/$B$7*$C$8,3) -> 0.015 | D13: l | E13: 1.84 € | F13: =SUM(E13*C13) -> 0.03 €
F15: =SUM(F9:F13) -> 0.34 €
A18: Die Verpflegung enthält:
A20: Rohgewicht | B20: 230 | C20: =SUM(B20*$C$8) -> 230 | D20: g | E20: Materialkosten:
A21: Energiewerte | B21: 935 | C21: 935 | D21: kJ | E21: Gesamtpreis: | F21: =SUM(F15) -> 0.34 €
B22: 223 | C22: 223 | D22: kcal | E22: MwSt. | F22: =ROUND(F21*G22,2) -> 0
A23: Eiweiß gesamt | B23: 16 | C23: 16 | D23: g | E23: Bruttopreis | F23: =SUM(F20:F22) -> 0.34 €
A24: Fett | B24: 7 | C24: 7 | D24: g
A25: Kohlenhydrate | B25: 25 | C25: 25 | D25: g
A28: Eine Portion enthält:
A30: Rohgewicht | C30: =B20 -> 230 | D30: g
A31: Energiewerte | C31: 935 | D31: kJ
C32: 223 | D32: kcal
A33: Eiweiß gesamt | C33: 16 | D33: g
A34: Fett | C34: 7 | D34: g
A35: Kohlenhydrate | C35: 25 | D35: g
